[Event "*** Titled Tuesday Blitz"]
[Site "Chess.com"]
[Date "2021.03.16"]
[Round "2"]
[White "ural58"]
[Black "vugarrasulov"]
[Result "0-1"]
[WhiteElo "2553"]
[BlackElo "2843"]
[TimeControl "180+1"]
[EndTime "10:19:07 PDT"]
[Termination "vugarrasulov won on time"]

1. e4 {[%clk 0:03:00.9]} 1... c5 {[%clk 0:03:00.1]} 2. b3 {[%clk 0:03:00.9]}
2... a6 {[%clk 0:02:57.8]} 3. Bb2 {[%clk 0:02:55.7]} 3... Nc6 {[%clk 0:02:57.7]}
4. Nf3 {[%clk 0:02:56.1]} 4... d6 {[%clk 0:02:56.6]} 5. d4 {[%clk 0:02:56.1]}
5... cxd4 {[%clk 0:02:56.3]} 6. Nxd4 {[%clk 0:02:57]} 6... Nf6 {[%clk
0:02:56.5]} 7. Nxc6 {[%clk 0:02:56.9]} 7... bxc6 {[%clk 0:02:56.3]} 8. e5 {[%clk
0:02:57]} 8... Nd5 {[%clk 0:02:54]} 9. c4 {[%clk 0:02:55.2]} 9... Nf4 {[%clk
0:02:47.9]} 10. Qf3 {[%clk 0:02:46.5]} 10... Ne6 {[%clk 0:02:41.2]} 11. Qxc6+
{[%clk 0:02:43.5]} 11... Bd7 {[%clk 0:02:41.5]} 12. Qe4 {[%clk 0:02:39.5]} 12...
Rc8 {[%clk 0:02:39]} 13. Nc3 {[%clk 0:02:37.3]} 13... Bc6 {[%clk 0:02:33.4]} 14.
Qe3 {[%clk 0:02:32.3]} 14... dxe5 {[%clk 0:02:19.6]} 15. Qxe5 {[%clk 0:02:30.2]}
15... Qd4 {[%clk 0:02:19.7]} 16. Nd5 {[%clk 0:02:06.1]} 16... Qxe5+ {[%clk
0:02:17.6]} 17. Bxe5 {[%clk 0:02:05.6]} 17... f6 {[%clk 0:02:16.4]} 18. Bb2
{[%clk 0:02:04.8]} 18... Nc5 {[%clk 0:02:12.3]} 19. O-O-O {[%clk 0:01:57.1]}
19... e6 {[%clk 0:02:12.5]} 20. Nc3 {[%clk 0:01:43.6]} 20... Be7 {[%clk
0:02:06.4]} 21. f3 {[%clk 0:01:43.6]} 21... Kf7 {[%clk 0:02:06]} 22. Be2 {[%clk
0:01:43.5]} 22... h5 {[%clk 0:02:02.5]} 23. Rd2 {[%clk 0:01:42.6]} 23... h4
{[%clk 0:02:01.7]} 24. h3 {[%clk 0:01:42]} 24... f5 {[%clk 0:01:58.9]} 25. Kb1
{[%clk 0:01:41]} 25... Bg5 {[%clk 0:01:57.9]} 26. Rdd1 {[%clk 0:01:37.3]} 26...
Bf6 {[%clk 0:01:49.8]} 27. Rhe1 {[%clk 0:01:33.3]} 27... g5 {[%clk 0:01:48.8]}
28. Bf1 {[%clk 0:01:24.1]} 28... Rhg8 {[%clk 0:01:48.4]} 29. Ne2 {[%clk
0:01:21.4]} 29... g4 {[%clk 0:01:41.6]} 30. Bxf6 {[%clk 0:01:20.4]} 30... Kxf6
{[%clk 0:01:42.5]} 31. fxg4 {[%clk 0:01:20.1]} 31... fxg4 {[%clk 0:01:40.2]} 32.
Nd4 {[%clk 0:01:19.1]} 32... Bb7 {[%clk 0:01:33.2]} 33. b4 {[%clk 0:01:16.8]}
33... Ne4 {[%clk 0:01:30.3]} 34. Kb2 {[%clk 0:01:07.2]} 34... gxh3 {[%clk
0:01:30.1]} 35. gxh3 {[%clk 0:01:07]} 35... Rg3 {[%clk 0:01:26.9]} 36. Bd3
{[%clk 0:01:04.5]} 36... Ng5 {[%clk 0:01:20.3]} 37. Rf1+ {[%clk 0:00:57.5]}
37... Ke7 {[%clk 0:01:17.6]} 38. c5 {[%clk 0:00:55.3]} 38... Rd8 {[%clk
0:01:12.5]} 39. Bc4 {[%clk 0:00:53.2]} 39... Rxh3 {[%clk 0:01:03.2]} 40. Rfe1
{[%clk 0:00:50.1]} 40... Rh2+ {[%clk 0:00:49.3]} 41. Ka3 {[%clk 0:00:47.2]}
41... Bd5 {[%clk 0:00:46]} 42. Bxd5 {[%clk 0:00:46.3]} 42... Rxd5 {[%clk
0:00:46.9]} 43. Nc6+ {[%clk 0:00:37.5]} 43... Kd7 {[%clk 0:00:44.4]} 44. Rxd5+
{[%clk 0:00:37.2]} 44... exd5 {[%clk 0:00:45.3]} 45. Nb8+ {[%clk 0:00:37.9]}
45... Kd8 {[%clk 0:00:43.6]} 46. Nxa6 {[%clk 0:00:36.1]} 46... h3 {[%clk
0:00:43.4]} 47. Re5 {[%clk 0:00:35.6]} 47... Rg2 {[%clk 0:00:41]} 48. Rxd5+
{[%clk 0:00:35.7]} 48... Ke7 {[%clk 0:00:39.7]} 49. Rd1 {[%clk 0:00:22.4]} 49...
h2 {[%clk 0:00:40]} 50. Rh1 {[%clk 0:00:20.7]} 50... Ne4 {[%clk 0:00:40.5]} 51.
b5 {[%clk 0:00:17.5]} 51... Ng3 {[%clk 0:00:38.3]} 52. Rxh2 {[%clk 0:00:16.9]}
52... Rxh2 {[%clk 0:00:39.2]} 53. c6 {[%clk 0:00:16.1]} 53... Kd6 {[%clk
0:00:34.8]} 54. Kb3 {[%clk 0:00:15.5]} 54... Nf5 {[%clk 0:00:33.2]} 55. a4
{[%clk 0:00:15.8]} 55... Rh4 {[%clk 0:00:30.4]} 56. Nb4 {[%clk 0:00:14.2]} 56...
Nd4+ {[%clk 0:00:30.6]} 57. Kc3 {[%clk 0:00:13.9]} 57... Ne2+ {[%clk 0:00:29]}
58. Kb3 {[%clk 0:00:14.2]} 58... Nd4+ {[%clk 0:00:28.4]} 59. Kc3 {[%clk
0:00:14.5]} 59... Rg4 {[%clk 0:00:25.2]} 60. Nd3 {[%clk 0:00:14.2]} 60... Ne6
{[%clk 0:00:19.2]} 61. Kb3 {[%clk 0:00:11.1]} 61... Rd4 {[%clk 0:00:17.8]} 62.
Nb4 {[%clk 0:00:10.6]} 62... Rg4 {[%clk 0:00:17]} 63. Na6 {[%clk 0:00:10.4]}
63... Nd4+ {[%clk 0:00:16.4]} 64. Ka3 {[%clk 0:00:08.8]} 64... Rg1 {[%clk
0:00:15.4]} 65. Kb4 {[%clk 0:00:08.7]} 65... Rb1+ {[%clk 0:00:15.1]} 66. Ka5
{[%clk 0:00:08.9]} 66... Ra1 {[%clk 0:00:13.7]} 67. b6 {[%clk 0:00:05.8]} 67...
Kxc6 {[%clk 0:00:12.8]} 68. Nb4+ {[%clk 0:00:05.7]} 68... Kb7 {[%clk 0:00:13.1]}
69. Nd3 {[%clk 0:00:03.6]} 69... Nc6+ {[%clk 0:00:13.2]} 70. Kb5 {[%clk
0:00:03.4]} 70... Rb1+ {[%clk 0:00:13.9]} 71. Kc5 {[%clk 0:00:03.4]} 71... Rxb6
{[%clk 0:00:14.5]} 72. Nf4 {[%clk 0:00:01.5]} 72... Na5 {[%clk 0:00:12.9]} 73.
Nd5 {[%clk 0:00:01.7]} 73... Rb1 {[%clk 0:00:13.2]} 0-1

[Event "*** Titled Tuesday Blitz"]
[Site "Chess.com"]
[Date "2021.03.16"]
[Round "2"]
[White "zajka-molotok"]
[Black "ChessLover0108"]
[Result "0-1"]
[WhiteElo "2518"]
[BlackElo "2782"]
[TimeControl "180+1"]
[EndTime "10:19:10 PDT"]
[Termination "ChessLover0108 won by resignation"]

1. b4 {[%clk 0:03:00.9]} 1... e5 {[%clk 0:02:56.6]} 2. Bb2 {[%clk 0:03:00.9]}
2... Bxb4 {[%clk 0:02:57.2]} 3. Bxe5 {[%clk 0:03:00.8]} 3... Nf6 {[%clk
0:02:58.1]} 4. e3 {[%clk 0:03:01.2]} 4... O-O {[%clk 0:02:58.1]} 5. Nf3 {[%clk
0:03:01.3]} 5... Re8 {[%clk 0:02:58.7]} 6. Be2 {[%clk 0:03:01.3]} 6... Nc6
{[%clk 0:02:59.2]} 7. Bb2 {[%clk 0:03:00.8]} 7... d5 {[%clk 0:02:59.8]} 8. O-O
{[%clk 0:03:00.7]} 8... Bg4 {[%clk 0:02:53.3]} 9. d3 {[%clk 0:02:52.4]} 9...
Bxf3 {[%clk 0:02:34]} 10. Bxf3 {[%clk 0:02:53.3]} 10... Ne5 {[%clk 0:02:34.3]}
11. Be2 {[%clk 0:02:47.3]} 11... Bd6 {[%clk 0:02:32.6]} 12. Nd2 {[%clk
0:02:44.4]} 12... c6 {[%clk 0:02:33.2]} 13. Rb1 {[%clk 0:02:35.9]} 13... Qc7
{[%clk 0:02:31.9]} 14. h3 {[%clk 0:02:34.5]} 14... Rad8 {[%clk 0:02:30.6]} 15.
Nf3 {[%clk 0:02:24.3]} 15... h6 {[%clk 0:02:24.1]} 16. Nd4 {[%clk 0:02:21]}
16... Ned7 {[%clk 0:02:17.9]} 17. Nf5 {[%clk 0:02:18.8]} 17... Bh2+ {[%clk
0:02:17.9]} 18. Kh1 {[%clk 0:02:17.8]} 18... Be5 {[%clk 0:02:18.8]} 19. d4
{[%clk 0:02:14.7]} 19... Bd6 {[%clk 0:02:19.1]} 20. Nxd6 {[%clk 0:02:09.1]}
20... Qxd6 {[%clk 0:02:20]} 21. c4 {[%clk 0:02:08.9]} 21... Ne4 {[%clk 0:02:13]}
22. cxd5 {[%clk 0:02:04.5]} 22... cxd5 {[%clk 0:02:13.9]} 23. Qd3 {[%clk
0:01:52.1]} 23... Rc8 {[%clk 0:02:12.5]} 24. Kg1 {[%clk 0:01:40.8]} 24... Nb6
{[%clk 0:02:10.8]} 25. Ba3 {[%clk 0:01:38.7]} 25... Qf6 {[%clk 0:02:08.5]} 26.
Bb4 {[%clk 0:01:34.5]} 26... Nc4 {[%clk 0:02:05.8]} 27. Bf3 {[%clk 0:01:32.9]}
27... b6 {[%clk 0:01:37.9]} 28. Rbc1 {[%clk 0:01:28.8]} 28... Qg6 {[%clk
0:01:29.5]} 29. Bxe4 {[%clk 0:01:04.2]} 29... Rxe4 {[%clk 0:01:21.4]} 30. Rc2
{[%clk 0:01:00.6]} 30... f5 {[%clk 0:01:15.7]} 31. g3 {[%clk 0:00:52.8]} 31...
Kh7 {[%clk 0:01:14.5]} 32. Kh2 {[%clk 0:00:51.8]} 32... a5 {[%clk 0:01:04.6]}
33. Bd2 {[%clk 0:00:46]} 33... Ree8 {[%clk 0:00:56.5]} 34. Rb1 {[%clk
0:00:44.5]} 34... Kg8 {[%clk 0:00:46.7]} 35. Rb5 {[%clk 0:00:40.6]} 35... Qe6
{[%clk 0:00:47.2]} 36. Be1 {[%clk 0:00:32.4]} 36... Red8 {[%clk 0:00:36.7]} 37.
a4 {[%clk 0:00:25.9]} 37... Qe4 {[%clk 0:00:35.4]} 38. Qxe4 {[%clk 0:00:21.4]}
38... fxe4 {[%clk 0:00:36.3]} 39. Rc3 {[%clk 0:00:16.9]} 39... Kf7 {[%clk
0:00:35.9]} 40. Kg2 {[%clk 0:00:16.2]} 40... Ke6 {[%clk 0:00:34]} 41. Kf1 {[%clk
0:00:16.5]} 41... Rc6 {[%clk 0:00:33.2]} 42. Ke2 {[%clk 0:00:16.6]} 42... Rdc8
{[%clk 0:00:33.7]} 43. g4 {[%clk 0:00:14.6]} 43... g6 {[%clk 0:00:32.6]} 44. Bd2
{[%clk 0:00:12.9]} 44... Nd6 {[%clk 0:00:28.5]} 45. Rxc6 {[%clk 0:00:12.3]}
45... Rxc6 {[%clk 0:00:29.4]} 46. Rb2 {[%clk 0:00:10.8]} 46... Nc4 {[%clk
0:00:29.7]} 47. Rb5 {[%clk 0:00:10]} 47... Rc8 {[%clk 0:00:30.6]} 48. Kd1 {[%clk
0:00:09.4]} 48... Rf8 {[%clk 0:00:30]} 49. Be1 {[%clk 0:00:09.4]} 49... Rf3
{[%clk 0:00:29.9]} 50. h4 {[%clk 0:00:08.4]} 50... Rh3 {[%clk 0:00:29.7]} 51.
Rb3 {[%clk 0:00:04.9]} 51... Rxh4 {[%clk 0:00:28.4]} 52. f3 {[%clk 0:00:05.3]}
52... Rh3 {[%clk 0:00:27.8]} 53. fxe4 {[%clk 0:00:05.1]} 53... Rxe3 {[%clk
0:00:24.7]} 54. exd5+ {[%clk 0:00:04.2]} 54... Kxd5 {[%clk 0:00:24.7]} 55. Rb5+
{[%clk 0:00:04.9]} 55... Ke4 {[%clk 0:00:23.6]} 56. d5 {[%clk 0:00:04.6]} 56...
Rd3+ {[%clk 0:00:23.3]} 57. Ke2 {[%clk 0:00:04.6]} 57... Rxd5 {[%clk 0:00:24.2]}
58. Rb1 {[%clk 0:00:03.7]} 58... Rd3 {[%clk 0:00:22.5]} 59. Bf2 {[%clk
0:00:03.4]} 59... Rd2+ {[%clk 0:00:22.7]} 60. Kf1 {[%clk 0:00:03.7]} 60... Rd6
{[%clk 0:00:16.7]} 61. Bg3 {[%clk 0:00:03.1]} 61... Nd2+ {[%clk 0:00:15.6]} 62.
Ke2 {[%clk 0:00:02.5]} 62... Nxb1 {[%clk 0:00:16.5]} 63. Bxd6 {[%clk 0:00:02.9]}
63... Nc3+ {[%clk 0:00:17.4]} 64. Kf2 {[%clk 0:00:02]} 64... Nxa4 {[%clk
0:00:18.3]} 65. Bc7 {[%clk 0:00:02]} 65... h5 {[%clk 0:00:19.2]} 66. gxh5 {[%clk
0:00:02]} 66... gxh5 {[%clk 0:00:20.1]} 67. Kg3 {[%clk 0:00:02.8]} 67... Kd5
{[%clk 0:00:20.3]} 68. Kh4 {[%clk 0:00:02.5]} 68... Kc6 {[%clk 0:00:20.9]} 69.
Bd8 {[%clk 0:00:02.8]} 69... Nc5 {[%clk 0:00:21.2]} 70. Kxh5 {[%clk 0:00:03]}
70... a4 {[%clk 0:00:21.9]} 71. Kg4 {[%clk 0:00:03]} 71... a3 {[%clk 0:00:22.3]}
72. Bf6 {[%clk 0:00:03.6]} 72... Kd5 {[%clk 0:00:21.2]} 73. Kf3 {[%clk 0:00:04]}
73... Kc4 {[%clk 0:00:21.6]} 74. Ke2 {[%clk 0:00:04.5]} 74... Kb3 {[%clk
0:00:21.4]} 75. Kd1 {[%clk 0:00:04.4]} 75... a2 {[%clk 0:00:22]} 76. Kc1 {[%clk
0:00:03.9]} 76... Nd3+ {[%clk 0:00:20.6]} 77. Kd2 {[%clk 0:00:04.3]} 77... Nb2
{[%clk 0:00:21.5]} 0-1

[Event "*** Titled Tuesday Blitz"]
[Site "Chess.com"]
[Date "2021.03.16"]
[Round "2"]
[White "blitzking1729"]
[Black "tylityli"]
[Result "0-1"]
[WhiteElo "2635"]
[BlackElo "2291"]
[TimeControl "180+1"]
[EndTime "10:19:39 PDT"]
[Termination "tylityli won by checkmate"]

1. d4 {[%clk 0:03:00.9]} 1... Nf6 {[%clk 0:02:58.7]} 2. Bg5 {[%clk 0:02:58.5]}
2... Ne4 {[%clk 0:02:57.5]} 3. Bf4 {[%clk 0:02:58.2]} 3... d5 {[%clk 0:02:56.9]}
4. f3 {[%clk 0:02:57.8]} 4... Nf6 {[%clk 0:02:55.9]} 5. e4 {[%clk 0:02:58.1]}
5... dxe4 {[%clk 0:02:54.6]} 6. Nc3 {[%clk 0:02:58.1]} 6... Nc6 {[%clk
0:02:51.7]} 7. Bb5 {[%clk 0:02:54.6]} 7... a6 {[%clk 0:02:39.5]} 8. Bxc6+ {[%clk
0:02:53.9]} 8... bxc6 {[%clk 0:02:40.4]} 9. fxe4 {[%clk 0:02:53.7]} 9... Bg4
{[%clk 0:02:37.1]} 10. Nf3 {[%clk 0:02:51.4]} 10... e6 {[%clk 0:02:37.3]} 11. a3
{[%clk 0:02:47.8]} 11... c5 {[%clk 0:02:36.8]} 12. dxc5 {[%clk 0:02:37.3]} 12...
Bxc5 {[%clk 0:02:29.3]} 13. Qxd8+ {[%clk 0:02:36]} 13... Rxd8 {[%clk 0:02:21.4]}
14. Bxc7 {[%clk 0:02:34.4]} 14... Rc8 {[%clk 0:02:19.2]} 15. Be5 {[%clk
0:02:29.6]} 15... O-O {[%clk 0:02:16.9]} 16. O-O-O {[%clk 0:02:24.3]} 16... Rfd8
{[%clk 0:02:07.4]} 17. Rxd8+ {[%clk 0:02:19.8]} 17... Rxd8 {[%clk 0:02:08.3]}
18. Rd1 {[%clk 0:02:19.8]} 18... Rc8 {[%clk 0:02:08.4]} 19. Kb1 {[%clk
0:02:08.7]} 19... h6 {[%clk 0:01:58.3]} 20. Bd4 {[%clk 0:02:01.2]} 20... Be7
{[%clk 0:01:56.1]} 21. e5 {[%clk 0:01:58.7]} 21... Nd5 {[%clk 0:01:49.7]} 22.
Nxd5 {[%clk 0:01:56.7]} 22... exd5 {[%clk 0:01:50.6]} 23. h3 {[%clk 0:01:53]}
23... Be6 {[%clk 0:01:49]} 24. Be3 {[%clk 0:01:46.6]} 24... Bf5 {[%clk
0:01:46.9]} 25. Nd4 {[%clk 0:01:42.4]} 25... Be4 {[%clk 0:01:46.7]} 26. Rd2
{[%clk 0:01:30.3]} 26... Bc5 {[%clk 0:01:45.8]} 27. b3 {[%clk 0:01:26.1]} 27...
Bxa3 {[%clk 0:01:37.9]} 28. e6 {[%clk 0:01:23.5]} 28... Bb4 {[%clk 0:01:31.5]}
29. exf7+ {[%clk 0:01:21.6]} 29... Kxf7 {[%clk 0:01:30.5]} 30. Rf2+ {[%clk
0:01:21.7]} 30... Ke7 {[%clk 0:01:24.8]} 31. Nf5+ {[%clk 0:01:18]} 31... Bxf5
{[%clk 0:01:20.2]} 32. Rxf5 {[%clk 0:01:17]} 32... Ke6 {[%clk 0:01:19.1]} 33.
Rf4 {[%clk 0:01:15.9]} 33... Bc3 {[%clk 0:01:19]} 34. Ra4 {[%clk 0:01:13.8]}
34... a5 {[%clk 0:01:18.4]} 35. Bc1 {[%clk 0:01:08.9]} 35... Ke5 {[%clk
0:01:16.9]} 36. Bb2 {[%clk 0:01:07.3]} 36... Bxb2 {[%clk 0:01:13.8]} 37. Kxb2
{[%clk 0:01:08.2]} 37... Rc5 {[%clk 0:01:14]} 38. c3 {[%clk 0:01:06.1]} 38... g5
{[%clk 0:01:10.4]} 39. g4 {[%clk 0:00:57.6]} 39... Rb5 {[%clk 0:01:06.1]} 40.
Kc2 {[%clk 0:00:56.8]} 40... Rc5 {[%clk 0:01:04.3]} 41. Kd3 {[%clk 0:00:50.9]}
41... Rb5 {[%clk 0:01:04]} 42. Kc2 {[%clk 0:00:47.6]} 42... Rc5 {[%clk
0:01:03.7]} 43. Kb2 {[%clk 0:00:34.3]} 43... Rb5 {[%clk 0:01:03.3]} 44. b4
{[%clk 0:00:24.7]} 44... axb4 {[%clk 0:01:00.2]} 45. Rxb4 {[%clk 0:00:25.6]}
45... Rc5 {[%clk 0:00:46.8]} 46. Kc2 {[%clk 0:00:23.4]} 46... Rc6 {[%clk
0:00:44.1]} 47. Kd3 {[%clk 0:00:23.3]} 47... Rf6 {[%clk 0:00:43.7]} 48. Ke3
{[%clk 0:00:22.2]} 48... Rc6 {[%clk 0:00:43.6]} 49. Rb3 {[%clk 0:00:21.6]} 49...
Rc4 {[%clk 0:00:39.3]} 50. Kd3 {[%clk 0:00:19.1]} 50... Rf4 {[%clk 0:00:39.1]}
51. Rb6 {[%clk 0:00:18.8]} 51... Rf3+ {[%clk 0:00:38.3]} 52. Kd2 {[%clk
0:00:18.8]} 52... Rxh3 {[%clk 0:00:38.4]} 53. Rb5 {[%clk 0:00:17]} 53... Rg3
{[%clk 0:00:37.5]} 54. c4 {[%clk 0:00:17]} 54... Rxg4 {[%clk 0:00:36.5]} 55.
Rxd5+ {[%clk 0:00:17.1]} 55... Ke6 {[%clk 0:00:35.2]} 56. Kc3 {[%clk 0:00:16.9]}
56... h5 {[%clk 0:00:33.8]} 57. Rd8 {[%clk 0:00:14.4]} 57... h4 {[%clk
0:00:32.4]} 58. c5 {[%clk 0:00:14.2]} 58... Rg3+ {[%clk 0:00:31]} 59. Kc4 {[%clk
0:00:12.6]} 59... Kf5 {[%clk 0:00:31.1]} 60. c6 {[%clk 0:00:12.3]} 60... Rg1
{[%clk 0:00:30]} 61. Rd3 {[%clk 0:00:12]} 61... Ke6 {[%clk 0:00:26.7]} 62. Kc5
{[%clk 0:00:09.5]} 62... Rc1+ {[%clk 0:00:25.4]} 63. Kb6 {[%clk 0:00:09.2]}
63... g4 {[%clk 0:00:23.2]} 64. Rd4 {[%clk 0:00:09.2]} 64... Rb1+ {[%clk
0:00:18.7]} 65. Ka6 {[%clk 0:00:06.5]} 65... Ra1+ {[%clk 0:00:18.7]} 66. Kb6
{[%clk 0:00:06.1]} 66... Rb1+ {[%clk 0:00:18.9]} 67. Ka6 {[%clk 0:00:06]} 67...
Rc1 {[%clk 0:00:18.1]} 68. Kb6 {[%clk 0:00:04.5]} 68... Rxc6+ {[%clk 0:00:16.3]}
69. Kxc6 {[%clk 0:00:04.4]} 69... Kf5 {[%clk 0:00:16.5]} 70. Kd5 {[%clk
0:00:04.3]} 70... h3 {[%clk 0:00:15.7]} 71. Rd2 {[%clk 0:00:02.6]} 71... g3
{[%clk 0:00:14.6]} 72. Kd4 {[%clk 0:00:02.6]} 72... Kf4 {[%clk 0:00:14.6]} 73.
Rd1 {[%clk 0:00:02.3]} 73... g2 {[%clk 0:00:13.3]} 74. Kd3 {[%clk 0:00:01.9]}
74... h2 {[%clk 0:00:12.8]} 75. Ke2 {[%clk 0:00:02.2]} 75... g1=Q {[%clk
0:00:12.7]} 76. Rf1+ {[%clk 0:00:01.7]} 76... Qxf1+ {[%clk 0:00:12]} 77. Kxf1
{[%clk 0:00:02.6]} 77... h1=Q+ {[%clk 0:00:12.4]} 78. Kf2 {[%clk 0:00:02.6]}
78... Qf3+ {[%clk 0:00:12.2]} 79. Ke1 {[%clk 0:00:02.7]} 79... Qg2 {[%clk
0:00:12.4]} 80. Kd1 {[%clk 0:00:03.6]} 80... Ke3 {[%clk 0:00:12.5]} 81. Kc1
{[%clk 0:00:04.5]} 81... Kd3 {[%clk 0:00:12.2]} 82. Kb1 {[%clk 0:00:05.4]} 82...
Kc3 {[%clk 0:00:12.4]} 83. Ka1 {[%clk 0:00:06.3]} 83... Qb2# {[%clk 0:00:12.2]}
0-1

[Event "*** Titled Tuesday Blitz"]
[Site "Chess.com"]
[Date "2021.03.16"]
[Round "2"]
[White "elegant285"]
[Black "jacky72"]
[Result "0-1"]
[WhiteElo "2379"]
[BlackElo "2709"]
[TimeControl "180+1"]
[EndTime "10:20:27 PDT"]
[Termination "jacky72 won by resignation"]

1. d4 {[%clk 0:03:00.9]} 1... Nf6 {[%clk 0:03:00]} 2. c4 {[%clk 0:03:00.7]} 2...
g6 {[%clk 0:03:00.5]} 3. Nc3 {[%clk 0:03:00.6]} 3... Bg7 {[%clk 0:03:01]} 4. e4
{[%clk 0:03:00.2]} 4... O-O {[%clk 0:03:01.1]} 5. Be2 {[%clk 0:03:00.3]} 5... d6
{[%clk 0:03:01.6]} 6. Bg5 {[%clk 0:03:00.3]} 6... Na6 {[%clk 0:03:02.2]} 7. Nf3
{[%clk 0:02:59.3]} 7... e5 {[%clk 0:03:02.7]} 8. O-O {[%clk 0:02:55]} 8... h6
{[%clk 0:03:02.4]} 9. Be3 {[%clk 0:02:51.4]} 9... Ng4 {[%clk 0:03:02]} 10. Bc1
{[%clk 0:02:51.1]} 10... exd4 {[%clk 0:02:59.6]} 11. Nxd4 {[%clk 0:02:51]} 11...
Qh4 {[%clk 0:03:00]} 12. Nf3 {[%clk 0:02:49]} 12... Qd8 {[%clk 0:02:55.8]} 13.
h3 {[%clk 0:02:41.1]} 13... Ne5 {[%clk 0:02:55.6]} 14. Be3 {[%clk 0:02:34]}
14... Nxf3+ {[%clk 0:02:52]} 15. Bxf3 {[%clk 0:02:34.9]} 15... Be6 {[%clk
0:02:52.5]} 16. Be2 {[%clk 0:02:30.4]} 16... Re8 {[%clk 0:02:49.1]} 17. Rc1
{[%clk 0:02:27.3]} 17... Qh4 {[%clk 0:02:48]} 18. Bd4 {[%clk 0:02:18.8]} 18...
Nc5 {[%clk 0:02:31.4]} 19. Bxg7 {[%clk 0:01:57.6]} 19... Kxg7 {[%clk 0:02:31.2]}
20. Qd4+ {[%clk 0:01:56.9]} 20... Qf6 {[%clk 0:02:31.1]} 21. Rfd1 {[%clk
0:01:54.3]} 21... Qxd4 {[%clk 0:02:21.9]} 22. Rxd4 {[%clk 0:01:55.2]} 22... Bd7
{[%clk 0:02:22]} 23. Nd5 {[%clk 0:01:46.8]} 23... Rac8 {[%clk 0:02:19.7]} 24.
Bf3 {[%clk 0:01:32.6]} 24... Bc6 {[%clk 0:02:08.2]} 25. Bg4 {[%clk 0:01:23.1]}
25... Ne6 {[%clk 0:02:07.3]} 26. Bxe6 {[%clk 0:01:22.1]} 26... fxe6 {[%clk
0:02:07.2]} 27. Nc3 {[%clk 0:01:20.4]} 27... e5 {[%clk 0:02:07.4]} 28. Rd2
{[%clk 0:01:17.2]} 28... Rf8 {[%clk 0:02:07.3]} 29. Nd5 {[%clk 0:01:12]} 29...
Rf7 {[%clk 0:02:05.6]} 30. c5 {[%clk 0:01:09.1]} 30... dxc5 {[%clk 0:02:02.4]}
31. Rxc5 {[%clk 0:01:10]} 31... Rd8 {[%clk 0:01:59.9]} 32. Rdc2 {[%clk
0:01:05.6]} 32... Rfd7 {[%clk 0:01:58.3]} 33. Rd2 {[%clk 0:00:54.6]} 33... Bxd5
{[%clk 0:01:57.4]} 34. Rdxd5 {[%clk 0:00:51.4]} 34... Rxd5 {[%clk 0:01:57.3]}
35. exd5 {[%clk 0:00:51.7]} 35... Rd7 {[%clk 0:01:57.2]} 36. f3 {[%clk
0:00:50.8]} 36... Kf6 {[%clk 0:01:55.6]} 37. Ra5 {[%clk 0:00:47.7]} 37... a6
{[%clk 0:01:53.2]} 38. Kf2 {[%clk 0:00:47.6]} 38... Ke7 {[%clk 0:01:51.9]} 39.
Ke3 {[%clk 0:00:47.9]} 39... Kd6 {[%clk 0:01:52.2]} 40. Ke4 {[%clk 0:00:47.7]}
40... Rf7 {[%clk 0:01:52.8]} 41. g3 {[%clk 0:00:47.4]} 41... h5 {[%clk
0:01:53.2]} 42. h4 {[%clk 0:00:46.3]} 42... Rg7 {[%clk 0:01:51]} 43. Ra3 {[%clk
0:00:43.7]} 43... g5 {[%clk 0:01:51.4]} 44. Rb3 {[%clk 0:00:43.4]} 44... gxh4
{[%clk 0:01:51.1]} 45. gxh4 {[%clk 0:00:43.2]} 45... Rg1 {[%clk 0:01:46.2]} 46.
Rxb7 {[%clk 0:00:35.4]} 46... Rh1 {[%clk 0:01:46.5]} 47. Ra7 {[%clk 0:00:34.7]}
47... Rxh4+ {[%clk 0:01:46.3]} 48. Ke3 {[%clk 0:00:35.3]} 48... Ra4 {[%clk
0:01:45]} 49. a3 {[%clk 0:00:33.7]} 49... h4 {[%clk 0:01:45.5]} 50. Ra8 {[%clk
0:00:33.8]} 50... Kxd5 {[%clk 0:01:43.5]} 51. Rh8 {[%clk 0:00:31]} 51... Rc4
{[%clk 0:01:33.2]} 52. Rh6 {[%clk 0:00:30.2]} 52... c6 {[%clk 0:01:32.1]} 53.
Kd3 {[%clk 0:00:25.6]} 53... a5 {[%clk 0:01:29.4]} 54. Ke3 {[%clk 0:00:21.9]}
54... a4 {[%clk 0:01:29.2]} 55. Rh8 {[%clk 0:00:22]} 55... Kc5 {[%clk
0:01:26.2]} 56. Rh5 {[%clk 0:00:20.7]} 56... Kd6 {[%clk 0:01:25.4]} 57. Rh6+
{[%clk 0:00:20.8]} 57... Kd5 {[%clk 0:01:25.1]} 58. Rh8 {[%clk 0:00:20.9]} 58...
Ke6 {[%clk 0:01:25.4]} 59. Rh6+ {[%clk 0:00:20.9]} 59... Kf5 {[%clk 0:01:25.3]}
60. Rh5+ {[%clk 0:00:21.2]} 60... Kf6 {[%clk 0:01:25.9]} 61. Rh6+ {[%clk
0:00:21.2]} 61... Kg5 {[%clk 0:01:26.2]} 62. Rh8 {[%clk 0:00:21.2]} 62... Rc2
{[%clk 0:01:26.4]} 63. Rb8 {[%clk 0:00:20.4]} 63... h3 {[%clk 0:01:25.2]} 64.
Rg8+ {[%clk 0:00:20.5]} 64... Kf6 {[%clk 0:01:25.1]} 65. Rh8 {[%clk 0:00:16.8]}
65... h2 {[%clk 0:01:25.3]} 66. Kd3 {[%clk 0:00:15]} 66... Rxb2 {[%clk
0:01:24.3]} 67. Kc3 {[%clk 0:00:15.6]} 67... Rb3+ {[%clk 0:01:24]} 68. Kc4
{[%clk 0:00:16.1]} 68... Rb2 {[%clk 0:01:21.7]} 69. Kc3 {[%clk 0:00:16]} 69...
Ra2 {[%clk 0:01:20.5]} 70. Kb4 {[%clk 0:00:15]} 70... Kf5 {[%clk 0:01:20.8]} 71.
Kxa4 {[%clk 0:00:15.1]} 71... Kf4 {[%clk 0:01:21.3]} 72. Kb3 {[%clk 0:00:15.4]}
72... Re2 {[%clk 0:01:21.7]} 73. a4 {[%clk 0:00:15.4]} 73... Kxf3 {[%clk
0:01:21.6]} 74. a5 {[%clk 0:00:15.8]} 74... Kg2 {[%clk 0:01:19.5]} 75. a6 {[%clk
0:00:15.8]} 75... Re3+ {[%clk 0:01:19.6]} 76. Kb4 {[%clk 0:00:15.3]} 76... Rh3
{[%clk 0:01:20.5]} 77. Rg8+ {[%clk 0:00:13.4]} 77... Kf2 {[%clk 0:01:20.5]} 78.
a7 {[%clk 0:00:13.4]} 78... h1=Q {[%clk 0:01:17]} 79. Rf8+ {[%clk 0:00:13.7]}
79... Ke2 {[%clk 0:01:13.1]} 80. a8=Q {[%clk 0:00:14]} 80... Qe4+ {[%clk
0:01:06.9]} 81. Kc5 {[%clk 0:00:12.9]} 81... Qd5+ {[%clk 0:01:05.2]} 82. Kb6
{[%clk 0:00:13.2]} 82... Rb3+ {[%clk 0:01:00.5]} 83. Kc7 {[%clk 0:00:13.3]}
83... e4 {[%clk 0:00:37.6]} 84. Qa2+ {[%clk 0:00:12.3]} 84... Ke3 {[%clk
0:00:27.4]} 85. Qf2+ {[%clk 0:00:09.5]} 85... Kd3 {[%clk 0:00:27.9]} 86. Qf1+
{[%clk 0:00:10]} 86... Kc3 {[%clk 0:00:22.1]} 87. Qc1+ {[%clk 0:00:10]} 87...
Kd4 {[%clk 0:00:18.1]} 88. Rd8 {[%clk 0:00:09.8]} 88... e3 {[%clk 0:00:13.8]}
89. Rxd5+ {[%clk 0:00:09.2]} 89... cxd5 {[%clk 0:00:13.8]} 90. Qd1+ {[%clk
0:00:09.3]} 90... Rd3 {[%clk 0:00:14.3]} 91. Qa4+ {[%clk 0:00:08.7]} 91... Kc3
{[%clk 0:00:14.2]} 92. Qa3+ {[%clk 0:00:08.2]} 92... Kc2 {[%clk 0:00:14.1]} 93.
Qa2+ {[%clk 0:00:08.4]} 93... Kd1 {[%clk 0:00:14.3]} 94. Qb1+ {[%clk 0:00:08.5]}
94... Kd2 {[%clk 0:00:14.8]} 95. Qb2+ {[%clk 0:00:08.8]} 95... Ke1 {[%clk
0:00:14.4]} 96. Qc2 {[%clk 0:00:08.8]} 96... Rd2 {[%clk 0:00:13.5]} 97. Qc3
{[%clk 0:00:09.1]} 97... e2 {[%clk 0:00:13.8]} 98. Kd6 {[%clk 0:00:07.9]} 98...
d4 {[%clk 0:00:12]} 99. Qb4 {[%clk 0:00:07.2]} 99... d3 {[%clk 0:00:03.5]} 100.
Ke5 {[%clk 0:00:05]} 100... Kf1 {[%clk 0:00:03.7]} 101. Qxd2 {[%clk 0:00:04.4]}
101... e1=Q+ {[%clk 0:00:04.6]} 102. Qxe1+ {[%clk 0:00:02.3]} 102... Kxe1 {[%clk
0:00:05.5]} 0-1